fUSD/lending_fUSD_20251210
["ID","MTS","AMOUNT","RATE_DAILY","PERIOD"]
[398128803,1765390249274,-500.0,0.00041095,60]
[398128804,1765390249284,-500.0,0.00041095,60]
[398128805,1765390249294,-500.0,0.00041095,60]
[398128806,1765390249305,-500.0,0.00041095,60]
[398128807,1765390249315,-500.0,0.00041095,60]
[398128808,1765390249325,-500.0,0.00041095,60]
[398128809,1765390249334,-500.0,0.00041095,60]
[398128810,1765390249344,-500.0,0.00041095,60]
[398128811,1765390249353,-500.0,0.00041095,60]
[398128812,1765390249363,-500.0,0.00041095,60]
[398128813,1765390249372,-500.0,0.00041095,60]
[398128814,1765390249381,-502.71564035,0.00041095,60]
[398128815,1765390249391,-500.0,0.00041095,60]
[398128816,1765390249400,-500.0,0.00041095,60]
[398128817,1765390249410,-500.0,0.00041095,25]
[398128818,1765390249421,-500.0,0.00041095,60]
[398128819,1765390249430,-505.85200251,0.00041095,60]
[398128820,1765390249439,-500.0,0.00041095,60]
[398128821,1765390249448,-500.0,0.00041095,60]
[398128822,1765390249458,-500.0,0.00041095,60]
[398128823,1765390249467,-500.0,0.00041095,60]
[398128824,1765390249476,-500.0,0.00041095,60]
[398128825,1765390249485,-500.0,0.00041095,60]
[398128826,1765390249496,-500.0,0.00041095,60]
[398128827,1765390249506,-500.0,0.00041095,60]
[398128828,1765390249516,-500.0,0.00041095,60]
[398128829,1765390249526,-500.0,0.00041095,60]
[398128830,1765390249536,-500.0,0.00041095,60]
[398128831,1765390249546,-500.0,0.00041095,60]
[398128832,1765390249555,-531.92335261,0.00041095,60]
[398128833,1765390249564,-500.0,0.00041095,60]
[398128834,1765390249574,-500.0,0.00041095,60]
[398128835,1765390249583,-495.84344016,0.00041095,60]
[398128836,1765390249592,-500.0,0.00041095,60]
[398128837,1765390249601,-500.0,0.00041095,60]
[398128838,1765390249610,-500.0,0.00041095,60]
[398128839,1765390249619,-500.0,0.00041095,60]
[398128840,1765390249629,-500.0,0.00041095,60]
[398128841,1765390249638,-500.0,0.00041095,60]
[398128842,1765390249648,-500.0,0.00041095,60]
[398128843,1765390249657,-347.72,0.00041095,60]
[398128844,1765390249667,-487.75362088,0.00041095,60]
[398128845,1765390249676,-500.0,0.00041095,60]
[398128846,1765390249686,-500.0,0.00041095,15]
[398128847,1765390249696,-500.0,0.00041095,15]
[398128848,1765390249705,-500.0,0.00041095,15]
[398128849,1765390249714,-500.0,0.00041095,60]
[398128850,1765390249723,-500.0,0.00041095,60]
[398128851,1765390249733,-500.0,0.00041095,60]
[398128852,1765390249879,-500.0,0.00041095,60]
[398128853,1765390249889,-500.0,0.00041095,60]
[398128854,1765390249899,-290.71845139,0.00041095,60]
[398128855,1765390249909,-395.13,0.00041095,14]
[398128856,1765390249919,-500.0,0.00041095,60]
[398128857,1765390249928,-500.0,0.00041095,60]
[398128858,1765390249937,-500.0,0.00041095,60]
[398128859,1765390249947,-500.0,0.00041095,60]
[398128860,1765390249956,-500.0,0.00041095,60]
[398128861,1765390249966,-500.0,0.00041095,60]
[398128862,1765390249975,-500.0,0.00041095,60]
[398128863,1765390249984,-500.0,0.00041095,60]
[398128864,1765390249995,-500.0,0.00041095,60]
[398128865,1765390250004,-531.6,0.00041095,60]
[398128866,1765390250014,-500.0,0.00041095,60]
[398128867,1765390250025,-500.0,0.00041095,60]
[398128868,1765390250034,-500.0,0.00041095,60]
[398128869,1765390250044,-500.0,0.00041095,60]
[398128870,1765390250054,-500.0,0.00041095,60]
[398128871,1765390250064,-500.0,0.00041095,60]
[398128872,1765390250073,-500.0,0.00041095,60]
[398128873,1765390250083,-500.0,0.00041095,60]
[398128874,1765390250093,-500.0,0.00041095,60]
[398128875,1765390250103,-500.0,0.00041095,60]
[398128876,1765390250112,-500.0,0.00041095,60]
[398128877,1765390250122,-527.64,0.00041095,60]
[398128878,1765390250132,-500.0,0.00041095,60]
[398128879,1765390250142,-500.0,0.00041095,60]
[398128880,1765390250151,-530.42,0.00041095,60]
[398128881,1765390250162,-500.0,0.00041095,60]
[398128882,1765390250171,-500.0,0.00041095,60]
[398128883,1765390250181,-500.0,0.00041095,60]
[398128884,1765390250191,-500.0,0.00041095,30]
[398128885,1765390250202,-302.0,0.00041095,60]
[398128886,1765390250212,-600.0,0.00041096,120]
[398128887,1765390250221,-355.44,0.00041096,14]
[398128888,1765390250233,-764.0,0.000411,2]
[398128889,1765390250243,-539.58050229,0.000411,2]
[398128890,1765390250253,-237.27712532,0.00041101,15]
[398128891,1765390250262,-237.27712532,0.00041169,15]
[398128892,1765390250272,-232.36853501,0.00041223,14]
[398128893,1765390250283,-237.27712532,0.00041238,15]
[398128894,1765390250292,-237.27712532,0.00041306,15]
[398128895,1765390250302,-210.0,0.0004137,30]
[398128896,1765390250313,-237.27712532,0.00041375,15]
[398128897,1765390250322,-200.0,0.000414,21]
[398128898,1765390250332,-237.27712532,0.00041443,15]
[398128899,1765390250342,-186.12,0.00041467,14]
[398128900,1765390250351,-500.0,0.00041499,60]
[398128901,1765390250361,-500.0,0.00041499,60]
[398128902,1765390250371,-500.0,0.00041499,60]
[398128903,1765390250380,-500.0,0.00041499,60]
[398128904,1765390250389,-587.6,0.00041499,60]
[398128905,1765390250400,-312.98,0.00041499,60]
[398128906,1765390250409,-249.11336963,0.00041499,60]
[398128907,1765390250419,-500.0,0.00041499,60]
[398128908,1765390250429,-500.0,0.00041499,60]
[398128909,1765390250438,-500.0,0.00041499,60]
[398128910,1765390250447,-370.33448627,0.00041499,60]
[398128911,1765390250457,-276.38868262,0.00041499,60]
[398128912,1765390250467,-500.0,0.00041499,60]
[398128913,1765390250477,-500.0,0.00041499,60]
[398128914,1765390250487,-150.0,0.00041499,20]
[398128915,1765390250497,-1600.69423328,0.000415,120]
[398128916,1765390250506,-2499.95,0.000415,120]
[398128917,1765390250515,-500.0,0.000415,2]
[398128918,1765390250525,-500.0,0.000415,2]
[398128919,1765390250534,-500.0,0.000415,2]
[398128920,1765390250544,-500.0,0.000415,2]
[398128921,1765390250554,-500.0,0.000415,60]
[398128922,1765390250563,-500.0,0.000415,60]
[398128923,1765390250573,-500.0,0.000415,60]
[398128924,1765390250583,-559.60862083,0.000415,60]
[398128925,1765390250592,-500.0,0.000415,60]
[398128926,1765390250601,-500.0,0.000415,60]
[398128927,1765390250611,-500.0,0.000415,60]
[398128928,1765390250620,-500.0,0.000415,60]
[398128929,1765390250628,-500.0,0.000415,60]
[398128930,1765390250638,-500.0,0.000415,60]
[398128931,1765390250647,-500.0,0.000415,60]
[398128932,1765390250656,-500.0,0.000415,60]
[398128933,1765390250666,-500.0,0.000415,60]
[398128934,1765390250676,-500.0,0.000415,60]
[398128935,1765390250685,-500.0,0.000415,60]
[398128936,1765390250695,-500.0,0.000415,60]
[398128937,1765390250704,-512.7942683,0.000415,60]
[398128938,1765390250714,-500.0,0.000415,60]
[398128939,1765390250723,-503.0240859,0.000415,60]
[398128940,1765390250732,-500.0,0.000415,60]
[398128941,1765390250742,-500.0,0.000415,60]
[398128942,1765390250752,-500.0,0.000415,60]
[398128943,1765390250762,-250.56037181,0.000415,60]
[398128944,1765390250966,-466.53316311,0.00037728,79]
[398128945,1765390250976,-249.43962819,0.000415,60]
[398128946,1765390250986,-109.5472087,0.000415,30]
[398128947,1765390250999,-438.4627963,0.000415,30]
[398128948,1765390251008,-500.0,0.000415,60]
[398128949,1765390251018,-500.0,0.000415,60]
[398128950,1765390251027,-500.0,0.000415,60]
[398128951,1765390251038,-292.68764341,0.000415,60]
[398128952,1765390251047,-500.0,0.000415,60]
[398128953,1765390251057,-500.0,0.000415,60]
[398128954,1765390251067,-500.0,0.000415,60]
[398128955,1765390251076,-500.0,0.000415,60]
[398128956,1765390251086,-393.79956029,0.000415,60]
[398129024,1765390646283,327.76,0.00013699,2]
[398129025,1765390652063,-290.26544674,0.00020187,2]
[398129053,1765390771117,500.0,0.00017873,2]
[398129054,1765390771151,1000.0,0.00018421,2]
[398129055,1765390776034,500.0,0.00017873,2]
[398129056,1765390776064,1000.0,0.00018421,2]
[398129057,1765390776102,500.0,0.00017873,2]
[398129058,1765390776131,500.0,0.00018968,2]
[398129059,1765390776169,500.0,0.00017873,2]
[398129060,1765390776201,643.73111686,0.00018421,2]
[398129061,1765390776230,1000.0,0.00018421,2]
[398129062,1765390776261,500.0,0.00018968,2]
[398129064,1765390803774,327.0,0.00020187,2]
[398129065,1765390803825,500.0,0.00017873,2]
[398129066,1765390803879,1000.0,0.00018421,2]
[398129067,1765390803935,500.0,0.00018968,2]
[398129073,1765390933446,181.0,1.14e-06,120]
[398129074,1765390986083,500.0,0.00017873,2]
[398129075,1765391045102,500.0,0.00017873,2]
[398129076,1765391045145,29.27888314,0.00018421,2]
[398129077,1765391045168,470.72111686,0.00018421,2]
[398129078,1765391049482,-37.49455326,0.00020187,2]
[398129079,1765391049511,-226.4334944,0.00022206,2]
[398129080,1765391060817,-23.5665056,0.00022206,2]
[398129111,1765391108458,10000.01,0.00018,2]
[398129112,1765391108488,10000.01,0.00018,2]
[398129113,1765391108517,10000.01,0.00018,2]
[398129114,1765391108551,10000.01,0.00018,2]
[398129115,1765391108587,10000.01,0.00018,2]
[398129116,1765391109279,-224.25362228,0.00018,2]
[398129117,1765391110707,-218.14885436,0.00018,2]
[398129118,1765391112238,-452.97834523,0.00018,2]
[398129119,1765391114848,-202.5084407,0.00018,2]
[398129120,1765391118008,-241.97861846,0.00018,2]
[398129121,1765391119732,-896.66425582,0.00018,2]
[398129122,1765391119867,-10000.01,0.00018,2]
[398129123,1765391119961,-386.53445387,0.00018,2]
[398129124,1765391122575,-10000.01,0.00018,2]
[398129125,1765391122605,-292.06257543,0.00018,2]
[398129126,1765391122710,-10000.01,0.00018,2]
[398129127,1765391122823,-10000.01,0.00018,2]
[398129128,1765391126088,-262.05562248,0.00018,2]
[398129129,1765391129225,-217.92291534,0.00018,2]
[398129130,1765391132581,-201.53973313,0.00016,2]
[398129131,1765391135210,-234.33412576,0.00016,2]
[398129132,1765391137162,-191.5009891,0.00016,2]
[398129133,1765391138171,-10000.01,0.00016,2]
[398129134,1765391138551,-4236.19133936,0.00016,2]
[398129135,1765391138586,-1527.62732128,0.00016,2]
[398129136,1765391138619,-10000.01,0.00018,2]
[398129137,1765391138688,-10000.01,0.00018,2]
[398129138,1765391138799,-286.85221084,0.00018,2]
[398129139,1765391140810,-209.5108101,0.00018,2]
[398129140,1765391143389,-331.70181824,0.00018,2]
[398129141,1765391145553,-180.94356648,0.00018,2]
[398129142,1765391147577,-252.40849096,0.00018,2]
[398129143,1765391150975,-168.08225623,0.00018,2]
[398129144,1765391153002,-185.89988965,0.00018,2]
[398129145,1765391155056,-387.58712855,0.00018,2]
[398129146,1765391157154,-164.83,0.00018,2]
[398129147,1765391160171,-289.51891807,0.00018,2]
[398129148,1765391161969,-541.91499148,0.00018,2]
[398129149,1765391163583,-264.50912143,0.00018,2]
[398129150,1765391165096,-231.18422848,0.00018,2]
[398129151,1765391167601,-202.56807794,0.00017873,2]
[398129152,1765391170332,-232.47284697,0.00017873,2]
[398129153,1765391173431,-64.95907509,0.00017873,2]
[398129154,1765391173457,-158.98582877,0.00018,2]
[398129155,1765391176044,-276.99316811,0.00018,2]
[398129156,1765391178102,-205.2540755,0.00018,2]
[398129157,1765391184967,-245.40498281,0.00018,2]
[398129158,1765391186506,-200.0780727,0.00018,2]
[398129159,1765391189954,-511.54953968,0.00018,2]
[398129160,1765391193184,-594.34392596,0.00018,2]
[398129161,1765391196616,-383.16556999,0.00018,2]
[398129162,1765391199413,-334.01590842,0.00018,2]
[398129163,1765391200844,-350.58151556,0.00018,2]
[398129164,1765391202270,-227.40939978,0.00018,2]
[398129165,1765391204247,-144.51138333,0.00018,2]
[398129166,1765391204272,-160.24828499,0.00018421,2]
[398129167,1765391205740,-207.74313869,0.00018421,2]
[398129168,1765391208329,-228.2649275,0.00018421,2]
[398129169,1765391211091,-236.7973591,0.00018421,2]
[398129170,1765391212704,-166.94628972,0.00018421,2]
[398129171,1765391212727,-173.88484107,0.00018968,2]
[398129172,1765391227736,193.52707338,0.00020865,120]
[398129173,1765391239432,-326.11515893,0.00018968,2]
[398129174,1765391239457,-61.74395432,0.00020865,2]
[398129175,1765391263438,-213.56619461,0.000192,2]
[398129176,1765391264939,-253.40380539,0.000192,2]
[398129177,1765391264962,-149.76345603,0.0002021,2]
[398129178,1765391267056,-159.51237526,0.0002021,2]
[398129179,1765391269988,-157.69416871,0.0002021,2]
[398129180,1765391270016,-42.30583129,0.00020865,2]
[398129181,1765391271592,-145.95021439,0.00020865,2]
[398129182,1765391271618,-282.92156466,0.00021221,2]
[398129183,1765391273625,10000.01,0.00017,2]
[398129184,1765391273650,10000.01,0.00017,2]
[398129185,1765391273675,10000.01,0.00017,2]
[398129186,1765391273698,10000.01,0.00017,2]
[398129187,1765391273721,10000.01,0.00017,2]
[398129188,1765391273744,10000.01,0.00017,2]
[398129189,1765391273769,10000.01,0.00017,2]
[398129190,1765391273792,10000.01,0.00017,2]
[398129191,1765391273815,10000.01,0.00017,2]
[398129192,1765391273839,10000.01,0.00017,2]
[398129193,1765391274403,-184.06362723,0.00017,2]
[398129194,1765391277014,-284.78927692,0.00017,2]
[398129195,1765391280342,-248.77632904,0.00017,2]
[398129196,1765391282560,-300.0,0.00017,2]
[398129197,1765391284913,-263.4831118,0.00017,2]
[398129198,1765391287562,-232.01296446,0.00017,2]
[398129199,1765391290120,-323.05785787,0.00017,2]
[398129200,1765391293645,-10000.01,0.00017,2]
[398129201,1765391293782,-10000.01,0.00017,2]
[398129202,1765391293881,-10000.01,0.00017,2]
[398129203,1765391294040,-10000.01,0.00017,2]
[398129204,1765391294140,-10000.01,0.00017,2]
[398129205,1765391294284,-10000.01,0.00017,2]
[398129206,1765391294387,-10000.01,0.00017,2]
[398129207,1765391294536,-10000.01,0.00017,2]
[398129208,1765391294583,-189.36096282,0.00017,2]
[398129209,1765391296692,-10000.01,0.00017,2]
[398129210,1765391297279,-341.59177984,0.00017,2]
[398129211,1765391298717,-178.48883473,0.00017,2]
[398129212,1765391299731,-10000.01,0.00017,2]
[398129213,1765391299859,-10000.01,0.00017,2]
[398129214,1765391300059,-10000.01,0.00017,2]
[398129215,1765391300138,-250.49910363,0.00017,2]
[398129216,1765391300175,-10000.01,0.00017,2]
[398129217,1765391300286,-10000.01,0.00017,2]
[398129218,1765391300397,-10000.01,0.00017,2]
[398129219,1765391300536,-10000.01,0.00017,2]
[398129220,1765391300643,-10000.01,0.00017,2]
[398129221,1765391302139,-501.30145625,0.00017,2]
[398129222,1765391305238,-223.45826807,0.00017,2]
[398129223,1765391306070,-10000.01,0.00017,2]
[398129224,1765391308664,-506.75404166,0.00017,2]
[398129225,1765391310206,-208.79439166,0.00017,2]
[398129226,1765391312259,-347.4635681,0.00017,2]
[398129227,1765391312401,-10000.01,0.00017,2]
[398129228,1765391313928,-154.91520239,0.00017,2]
[398129229,1765391315628,-10000.01,0.00017,2]
[398129230,1765391315892,-10000.01,0.00017,2]
[398129231,1765391316035,-10000.01,0.00017,2]
[398129232,1765391316178,-10000.01,0.00017,2]
[398129233,1765391316323,-10000.01,0.00017,2]
[398129234,1765391316467,-10000.01,0.00017,2]
[398129235,1765391316599,-10000.01,0.00017,2]
[398129236,1765391317672,-323.80611174,0.00017,2]
[398129237,1765391318615,-10000.01,0.00017,2]
[398129239,1765391320317,-406.0362409,0.00017,2]
[398129240,1765391321734,-10000.01,0.00017,2]
[398129241,1765391321847,-10000.01,0.00017,2]
[398129242,1765391321973,-10000.01,0.00017,2]
[398129243,1765391322093,-10000.01,0.00017,2]
[398129244,1765391322195,-10000.01,0.00017,2]
[398129245,1765391322315,-10000.01,0.00017,2]
[398129246,1765391322432,-10000.01,0.00017,2]
[398129247,1765391325252,-250.44408171,0.00017,2]
[398129248,1765391326815,-442.58375004,0.00017,2]
[398129249,1765391332645,-160.27701801,0.00017,2]
[398129250,1765391335902,-200.0,0.00017,2]
[398129251,1765391338703,-385.24737138,0.00017,2]
[398129252,1765391341169,-536.43589335,0.00017,2]
[398129253,1765391343802,-300.0,0.00016999,2]
[398129254,1765391343825,-188.15233038,0.00017,2]
[398129255,1765391345931,-193.78065377,0.00017,2]
[398129256,1765391346502,5915.24543522,0.00025,120]
[398129257,1765391349332,-191.70548187,0.00017,2]
[398129258,1765391353085,-273.76556917,0.00017,2]
[398129259,1765391354637,-387.09708909,0.00017,2]
[398129260,1765391356549,-299.97059731,0.00017,2]
[398129261,1765391358056,-244.83647206,0.00017,2]
[398129262,1765391360162,-242.74366237,0.00017,2]
[398129263,1765391362259,-172.6748682,0.00017,2]
[398129264,1765391366013,-229.86161601,0.00017,2]
[398129265,1765391368028,-158.36280703,0.00017,2]
[398129266,1765391369482,-282.48557006,0.00017,2]
[398129267,1765391370911,-274.18489119,0.00017,2]
[398129268,1765391373598,-243.79913167,0.00017,2]
[398129269,1765391376152,-261.63898327,0.00017,2]
[398129270,1765391378810,-299.90879008,0.00017,2]
[398129271,1765391380926,-170.11079776,0.00017,2]
[398129272,1765391382387,-161.46972376,0.00017,2]
[398129273,1765391383831,-300.22752209,0.00017,2]
[398129274,1765391385301,-190.69538351,0.00017,2]
[398129275,1765391389613,-314.73930348,0.00017,2]
[398129276,1765391390998,-198.72803522,0.00017,2]
[398129277,1765391392530,-267.98703554,0.00017,2]
[398129278,1765391394234,-287.66325273,0.00017,2]
[398129279,1765391395820,-211.17781171,0.00017,2]
[398129280,1765391398427,-237.31494318,0.00017,2]
[398129281,1765391401078,-239.92689593,0.00017,2]
[398129282,1765391402501,-188.41761924,0.00016999,2]
[398129283,1765391405142,-111.58238076,0.00016999,2]
[398129284,1765391405166,-185.30469852,0.00016999,2]
[398129285,1765391407239,-270.71250059,0.0001699,2]
[398129286,1765391408723,-178.75276212,0.0001699,2]
[398129287,1765391412829,-379.24276643,0.0001699,2]
[398129288,1765391416694,-114.69530148,0.00016999,2]
[398129289,1765391416718,-180.64886714,0.00016999,2]
[398129290,1765391421332,-233.45733336,0.00016999,2]
[398129291,1765391423274,-158.3628,0.00016999,2]
[398129292,1765391424710,-408.07398098,0.00016999,2]
[398129293,1765391428887,-219.45701852,0.00016999,2]
[398129294,1765391428911,-39.92549519,0.00016999,2]
[398129295,1765391430791,-225.31574734,0.00016999,2]
[398129312,1765391431415,-84.75875747,0.00016999,2]
[398129315,1765391431425,-500.0,0.00016999,2]
[398129318,1765391431434,-500.0,0.00016999,2]
[398129319,1765391431443,-41.79743167,0.00016999,2]
[398129320,1765391431470,-458.20256833,0.00016999,2]
[398129321,1765391431479,-500.0,0.00016999,2]
[398129322,1765391431488,-500.0,0.00016999,2]
[398129323,1765391431498,-191.69643357,0.00016999,2]
[398129324,1765391431509,-308.30356643,0.00016999,2]
[398129325,1765391431519,-500.0,0.00016999,2]
[398129326,1765391431529,-500.0,0.00016999,2]
[398129327,1765391431539,-500.0,0.00016999,2]
[398129328,1765391431549,-500.0,0.00016999,2]
[398129329,1765391431559,-500.0,0.00016999,2]
[398129330,1765391431568,-630.81663784,0.00016999,2]
[398129331,1765391431578,-183.15325981,0.00016999,2]
[398129332,1765391431589,-273.62958262,0.00016999,2]
[398129333,1765391431604,-43.21715757,0.00016999,2]
[398129334,1765391431614,-484.4738281,0.00016999,2]
[398129335,1765391431626,-15.5261719,0.00016999,2]
[398129336,1765391431636,-500.0,0.00016999,2]
[398129337,1765391431645,-405.5838281,0.00016999,2]
[398129338,1765391431689,-94.4161719,0.00016999,2]
[398129339,1765391431698,-500.0,0.00016999,2]
[398129340,1765391431708,-406.5738281,0.00016999,2]
[398129341,1765391431719,-93.4261719,0.00016999,2]
[398129342,1765391431729,-300.75101059,0.00016999,2]
[398129347,1765391431791,-199.24898941,0.00016999,2]
[398129348,1765391431800,-208.50085758,0.00016999,2]
[398129351,1765391431811,-291.49914242,0.00016999,2]
[398129352,1765391431822,-500.0,0.00016999,2]
[398129354,1765391431831,-500.0,0.00016999,2]
[398129357,1765391431842,-500.0,0.00016999,2]
[398129359,1765391431852,-500.0,0.00016999,2]
[398129361,1765391431862,-500.0,0.00016999,2]
[398129363,1765391431871,-500.0,0.00016999,2]
[398129365,1765391431881,-500.0,0.00016999,2]
[398129367,1765391431892,-500.0,0.00016999,2]
[398129369,1765391431902,-500.0,0.00016999,2]
[398129371,1765391431913,-500.0,0.00016999,2]
[398129373,1765391431923,-500.0,0.00016999,2]
[398129375,1765391431932,-500.0,0.00016999,2]
[398129377,1765391431941,-500.0,0.00016999,2]
[398129379,1765391431951,-23.62671758,0.00016999,2]
[398129381,1765391431963,-476.37328242,0.00016999,2]
[398129383,1765391431972,-170.24689832,0.00016999,2]
[398129385,1765391431984,-329.75310168,0.00016999,2]
[398129388,1765391431995,-500.0,0.00016999,2]
[398129390,1765391432005,-500.0,0.00016999,2]
[398129392,1765391432015,-500.0,0.00016999,2]
[398129394,1765391432025,-500.0,0.00016999,2]
[398129396,1765391432035,-500.0,0.00016999,2]
[398129398,1765391432044,-500.0,0.00016999,2]
[398129399,1765391432054,-500.0,0.00016999,2]
[398129401,1765391432064,-500.0,0.00016999,2]
[398129403,1765391432073,-500.0,0.00016999,2]
[398129405,1765391432083,-500.0,0.00016999,2]
[398129407,1765391432092,-500.0,0.00016999,2]
[398129409,1765391432102,-500.0,0.00016999,2]
[398129411,1765391432112,-500.0,0.00016999,2]
[398129413,1765391432122,-500.0,0.00016999,2]
[398129415,1765391432132,-500.0,0.00016999,2]
[398129417,1765391432143,-500.0,0.00016999,2]
[398129419,1765391432154,-500.0,0.00016999,2]
[398129421,1765391432164,-500.0,0.00016999,2]
[398129423,1765391432174,-500.0,0.00016999,2]
[398129425,1765391432184,-500.0,0.00016999,2]
[398129427,1765391432194,-500.0,0.00016999,2]
[398129429,1765391432203,-500.0,0.00016999,2]
[398129431,1765391432214,-500.0,0.00016999,2]
[398129433,1765391432223,-500.0,0.00016999,2]
[398129435,1765391432233,-500.0,0.00016999,2]
[398129437,1765391432242,-103917.94249655,0.00017,2]
[398129440,1765391432264,-294.3344452,0.00016999,2]
[398129442,1765391432273,-166.83917082,0.00017,2]
[398129455,1765391432380,-264.62257042,0.00016999,2]
[398129472,1765391435160,-205.49278137,0.00016999,2]
[398129473,1765391436754,-29.88464821,0.00016999,2]
[398129474,1765391436782,-175.4945825,0.00016999,2]
[398129478,1765391437553,-324.5054175,0.00016999,2]
[398129479,1765391437563,-333.97301609,0.00016999,2]
[398129480,1765391437660,-166.02698391,0.00016999,2]
[398129481,1765391437669,-438640.14500821,0.00017,2]
[398129482,1765391437678,-294.0,0.00017,2]
[398129483,1765391437685,-500.0,0.00017873,2]
[398129484,1765391437691,-500.0,0.00017873,2]
[398129485,1765391437699,-500.0,0.00017873,2]
[398129486,1765391437706,-500.0,0.00017873,2]
[398129487,1765391437713,-500.0,0.00017873,2]
[398129488,1765391437721,-500.0,0.00017873,2]
[398129489,1765391437727,-500.0,0.00017873,2]
[398129490,1765391437734,-500.0,0.00017873,2]
[398129491,1765391437740,-500.0,0.00017873,2]
[398129492,1765391437748,-500.0,0.00017873,2]
[398129493,1765391437754,-500.0,0.00017873,2]
[398129494,1765391437762,-500.0,0.00017873,2]
[398129495,1765391437769,-1000.0,0.0001842,2]
[398129496,1765391437776,-1000.0,0.00018421,2]
[398129497,1765391437784,-1000.0,0.00018421,2]
[398129498,1765391437793,-1000.0,0.00018421,2]
[398129499,1765391437800,-1000.0,0.00018421,2]
[398129500,1765391437807,-420.0,0.00018567,2]
[398129501,1765391437819,-420.0,0.00018567,2]
[398129502,1765391437827,-1680.0,0.00018659,2]
[398129503,1765391437836,-250.0,0.000187,2]
[398129504,1765391437847,-1500.0,0.00018968,2]
[398129505,1765391437857,-1500.0,0.00018968,2]
[398129506,1765391437866,-500.0,0.00018968,2]
[398129507,1765391437876,-582.94280219,0.00018968,2]
[398129508,1765391437886,-2000.0,0.00019516,2]
[398129509,1765391437896,-1101.59824678,0.00019516,2]
[398129510,1765391437911,-1522.228108,0.00020064,2]
[398129511,1765391437920,-587.0,0.00020279,2]
[398129512,1765391437930,-587.0,0.00020279,2]
[398129513,1765391437940,-2351.0,0.00020481,2]
[398129514,1765391437950,-266.59800001,0.00021021,2]
[398129515,1765391437959,-168.82816266,0.00021121,2]
[398129516,1765391437969,-184.04843534,0.00021221,2]
[398129517,1765391437978,-342.33099419,0.00021488,2]
[398129519,1765391437988,-939.0,0.00021672,2]
[398129521,1765391437997,-823.0,0.00022149,2]
[398129523,1765391438006,-823.0,0.00022149,2]
[398129524,1765391438015,-466.97,0.00022231,2]
[398129526,1765391438025,-3292.0,0.00022481,2]
[398129528,1765391438035,-250.0,0.00022822,2]
[398129530,1765391438045,-466.97,0.00023242,2]
[398129532,1765391438055,-250.0,0.000238,2]
[398129533,1765391438064,-1152.0,0.00024192,2]
[398129534,1765391438074,-1152.0,0.00024192,2]
[398129535,1765391438084,-466.97,0.00024252,2]
[398129536,1765391438095,-236.03809519,0.00024492,2]
[398129537,1765391438105,-4609.0,0.00024676,2]
[398129538,1765391438116,-5015.97474576,0.000248,3]
[398129539,1765391438126,-466.97,0.00025263,2]
[398129540,1765391438136,-150.0,0.000259,14]
[398129541,1765391438147,-466.97,0.00026273,2]
[398129542,1765391438157,-1575.0,0.00026423,2]
[398129543,1765391438167,-1237.0,0.00026423,2]